fUSD/lending_fUSD_20240803
["ID","MTS","AMOUNT","RATE_DAILY","PERIOD"]
[333983245,1722666665755,-500.0,0.00016438,2]
[333983246,1722666665764,-2347.93,0.00016438,2]
[333983247,1722666665773,-2404.697468,0.00016438,2]
[333983248,1722666665782,-3028.02,0.00016438,2]
[333983249,1722666665792,-500.0,0.00016438,2]
[333983250,1722666665801,-1182.86,0.00016438,2]
[333983251,1722666665811,-1315.97,0.00016438,2]
[333983252,1722666665819,-663.52,0.00016438,2]
[333983253,1722666665829,-1429.57,0.00016438,2]
[333983254,1722666665838,-1009.6,0.00016438,2]
[333983255,1722666665847,-151.0,0.00016438,2]
[333983256,1722666665856,-500.0,0.00016438,2]
[333983257,1722666665866,-151.0,0.00016438,2]
[333983258,1722666665875,-500.0,0.00016438,2]
[333983259,1722666665884,-151.0,0.00016438,2]
[333983260,1722666665893,-535.59,0.00016438,2]
[333983261,1722666665902,-500.0,0.00016438,2]
[333983262,1722666665911,-151.0,0.00016438,2]
[333983263,1722666665924,-151.462049,0.00016438,2]
[333983264,1722666665933,-1659.64,0.00016438,2]
[333983265,1722666665942,-151.0,0.00016438,2]
[333983266,1722666665952,-2404.697468,0.00016438,2]
[333983267,1722666665961,-500.0,0.00016438,2]
[333983268,1722666665971,-301.050283,0.00016438,2]
[333983269,1722666665981,-2820.52,0.00016438,2]
[333983270,1722666665992,-2404.697468,0.00016438,2]
[333983271,1722666666002,-2404.697468,0.00016438,2]
[333983272,1722666666013,-2112.36,0.00016438,2]
[333983273,1722666666023,-2096.17,0.00016438,2]
[333983274,1722666666033,-4031.55,0.00016438,2]
[333983275,1722666666042,-1049.02,0.00016438,2]
[333983276,1722666666051,-500.0,0.00016438,2]
[333983277,1722666666061,-500.0,0.00016438,2]
[333983278,1722666666070,-500.0,0.00016438,2]
[333983279,1722666666080,-500.0,0.00016438,2]
[333983280,1722666666090,-10150.27,0.00016438,2]
[333983281,1722666666099,-500.0,0.00016438,2]
[333983282,1722666666108,-1206.49,0.00016438,2]
[333983283,1722666666118,-1122.59,0.00016438,2]
[333983284,1722666666127,-500.0,0.00016438,2]
[333983285,1722666666136,-500.5874468,0.00016438,2]
[333983286,1722666666145,-576.06,0.00016438,2]
[333983287,1722666666155,-500.0,0.00016438,2]
[333983288,1722666666164,-177.049888,0.00016438,2]
[333983289,1722666666179,-177.049888,0.00016438,2]
[333983290,1722666666188,-1726.0,0.00016438,2]
[333983291,1722666666198,-500.0,0.00016438,2]
[333983292,1722666666207,-177.049888,0.00016438,2]
[333983293,1722666666216,-500.0,0.00016438,2]
[333983294,1722666666226,-500.0,0.00016438,2]
[333983295,1722666666235,-793.05,0.00016438,2]
[333983296,1722666666244,-3672.81,0.00016438,2]
[333983297,1722666666254,-500.0,0.00016438,2]
[333983298,1722666666263,-3286.16,0.00016438,2]
[333983299,1722666666272,-1612.0,0.00016438,2]
[333983300,1722666666281,-177.049888,0.00016438,2]
[333983301,1722666666290,-500.0,0.00016438,2]
[333983302,1722666666300,-500.0,0.00016438,2]
[333983303,1722666666309,-177.049888,0.00016438,2]
[333983304,1722666666318,-3453.65,0.00016438,2]
[333983305,1722666666327,-177.049888,0.00016438,2]
[333983306,1722666666336,-500.0,0.00016438,2]
[333983307,1722666666346,-500.0,0.00016438,2]
[333983308,1722666666355,-15160.97,0.00016438,2]
[333983309,1722666666364,-500.0,0.00016438,2]
[333983310,1722666666373,-500.0,0.00016438,2]
[333983311,1722666666382,-228.042973,0.00016438,2]
[333983312,1722666666392,-1516.13,0.00016438,2]
[333983313,1722666666401,-7716.14,0.00016438,2]
[333983314,1722666666411,-228.042973,0.00016438,2]
[333983315,1722666666423,-228.042973,0.00016438,2]
[333983316,1722666666434,-151.0,0.00016438,2]
[333983317,1722666666443,-1177.76,0.00016438,2]
[333983318,1722666666452,-151.0,0.00016438,2]
[333983319,1722666666462,-500.0,0.00016438,2]
[333983320,1722666666471,-1029.84,0.00016438,2]
[333983321,1722666666480,-151.0,0.00016438,2]
[333983322,1722666666490,-681.33,0.00016438,2]
[333983323,1722666666499,-500.0,0.00016438,2]
[333983324,1722666666508,-228.042973,0.00016438,2]
[333983325,1722666666518,-228.042973,0.00016438,2]
[333983326,1722666666527,-500.0,0.00016438,2]
[333983327,1722666666536,-2110.03,0.00016438,2]
[333983328,1722666666545,-228.042973,0.00016438,2]
[333983329,1722666666554,-291.538366,0.00016438,2]
[333983330,1722666666563,-291.538366,0.00016438,2]
[333983331,1722666666573,-500.0,0.00016438,2]
[333983332,1722666666582,-291.538366,0.00016438,2]
[333983333,1722666666591,-1577.4,0.00016438,2]
[333983334,1722666666600,-500.0,0.00016438,2]
[333983335,1722666666609,-151.0,0.00016438,2]
[333983336,1722666666619,-5511.15,0.00016438,2]
[333983337,1722666666630,-500.0,0.00016438,2]
[333983338,1722666666639,-163.591493,0.00016438,2]
[333983339,1722666666648,-291.538366,0.00016438,2]
[333983340,1722666666658,-291.538366,0.00016438,2]
[333983341,1722666666669,-500.0,0.00016438,2]
[333983342,1722666666678,-291.538366,0.00016438,2]
[333983343,1722666666687,-797.55,0.00016438,2]
[333983344,1722666666697,-500.0,0.00016438,2]
[333983345,1722666666709,-1050.57,0.00016438,2]
[333983346,1722666666719,-2534.68,0.00016438,2]
[333983347,1722666666728,-500.0,0.00016438,2]
[333983348,1722666666737,-500.0,0.00016438,2]
[333983349,1722666666746,-702.22,0.00016438,2]
[333983350,1722666666755,-702.22,0.00016438,2]
[333983351,1722666666764,-702.22,0.00016438,2]
[333983352,1722666666774,-500.0,0.00016438,2]
[333983353,1722666666783,-151.0,0.00016438,2]
[333983354,1722666666792,-2306.35,0.00016438,2]
[333983355,1722666666801,-702.22,0.00016438,2]
[333983356,1722666666811,-151.0,0.00016438,2]
[333983357,1722666666820,-702.22,0.00016438,2]
[333983358,1722666666829,-3191.49,0.00016438,2]
[333983359,1722666666838,-151.0,0.00016438,2]
[333983360,1722666666847,-702.22,0.00016438,2]
[333983361,1722666666856,-702.22,0.00016438,2]
[333983362,1722666666865,-500.0,0.00016438,2]
[333983363,1722666666874,-702.22,0.00016438,2]
[333983364,1722666666886,-681.76,0.00016438,2]
[333983365,1722666666896,-500.0,0.00016438,2]
[333983366,1722666666905,-702.22,0.00016438,2]
[333983367,1722666666914,-702.22,0.00016438,2]
[333983368,1722666666926,-702.22,0.00016438,2]
[333983369,1722666666936,-702.22,0.00016438,2]
[333983370,1722666666945,-702.22,0.00016438,2]
[333983371,1722666666954,-517.29,0.00016438,2]
[333983372,1722666666963,-702.22,0.00016438,2]
[333983373,1722666666972,-702.22,0.00016438,2]
[333983374,1722666666981,-702.22,0.00016438,2]
[333983375,1722666666995,-2590.66,0.00016438,2]
[333983376,1722666667005,-500.0,0.00016438,2]
[333983377,1722666667014,-702.22,0.00016438,2]
[333983378,1722666667025,-500.0,0.00016438,2]
[333983379,1722666667034,-702.22,0.00016438,2]
[333983380,1722666667043,-702.22,0.00016438,2]
[333983381,1722666667053,-702.22,0.00016438,2]
[333983382,1722666667062,-2269.33,0.00016438,2]
[333983383,1722666667071,-702.22,0.00016438,2]
[333983384,1722666667081,-500.0,0.00016438,2]
[333983385,1722666667090,-702.22,0.00016438,2]
[333983386,1722666667099,-702.22,0.00016438,2]
[333983387,1722666667108,-4486.63,0.00016438,2]
[333983388,1722666667118,-702.24098053,0.00016438,2]
[333983389,1722666667127,-571.15,0.00016438,2]
[333983390,1722666667137,-1395.7,0.00016438,2]
[333983391,1722666667146,-500.0,0.00016438,2]
[333983392,1722666667155,-2172.92,0.00016438,2]
[333983393,1722666667164,-927.9,0.00016438,2]
[333983394,1722666667175,-642.08,0.00016438,2]
[333983395,1722666667184,-500.0,0.00016438,2]
[333983396,1722666667194,-500.0,0.00016438,2]
[333983397,1722666667204,-500.0,0.00016438,2]
[333983398,1722666667213,-500.0,0.00016438,2]
[333983399,1722666667223,-500.0,0.00016438,2]
[333983400,1722666667233,-1875.47,0.00016438,2]
[333983401,1722666667242,-500.0,0.00016438,2]
[333983402,1722666667252,-500.0,0.00016438,2]
[333983403,1722666667261,-502.92,0.00016438,2]
[333983404,1722666667271,-500.0,0.00016438,2]
[333983405,1722666667280,-508.22,0.00016438,2]
[333983406,1722666667289,-551.94,0.00016438,2]
[333983407,1722666667300,-508.22,0.00016438,2]
[333983408,1722666667311,-508.22,0.00016438,2]
[333983409,1722666667320,-1703.59,0.00016438,2]
[333983410,1722666667330,-508.22,0.00016438,2]
[333983411,1722666667339,-1746.66,0.00016438,2]
[333983412,1722666667349,-508.22,0.00016438,2]
[333983413,1722666667358,-500.0,0.00016438,2]
[333983414,1722666667368,-500.0,0.00016438,2]
[333983415,1722666667377,-508.22,0.00016438,2]
[333983416,1722666667387,-508.22,0.00016438,2]
[333983417,1722666667396,-508.22,0.00016438,2]
[333983418,1722666667406,-500.0,0.00016438,2]
[333983419,1722666667415,-500.0,0.00016438,2]
[333983420,1722666667426,-508.22,0.00016438,2]
[333983421,1722666667437,-784.82,0.00016438,2]
[333983422,1722666667447,-849.08,0.00016438,2]
[333983423,1722666667456,-508.22,0.00016438,2]
[333983424,1722666667466,-3768.21,0.00016438,2]
[333983425,1722666667477,-591.2,0.00016438,2]
[333983426,1722666667487,-508.22,0.00016438,2]
[333983427,1722666667496,-500.0,0.00016438,2]
[333983428,1722666667506,-508.22,0.00016438,2]
[333983429,1722666667516,-508.22,0.00016438,2]
[333983430,1722666667525,-508.22,0.00016438,2]
[333983431,1722666667535,-400.0,0.00016438,2]
[333983432,1722666667544,-508.22,0.00016438,2]
[333983433,1722666667554,-876.21,0.00016438,2]
[333983434,1722666667563,-500.0,0.00016438,2]
[333983435,1722666667573,-3769.02,0.00016438,2]
[333983436,1722666667582,-508.22,0.00016438,2]
[333983437,1722666667592,-500.0,0.00016438,2]
[333983438,1722666667601,-1805.68,0.00016438,2]
[333983439,1722666667611,-508.22,0.00016438,2]
[333983440,1722666667620,-508.22,0.00016438,2]
[333983441,1722666667633,-508.22,0.00016438,2]
[333983442,1722666667643,-508.22,0.00016438,2]
[333983443,1722666667652,-508.22,0.00016438,2]
[333983444,1722666667662,-508.22,0.00016438,2]
[333983445,1722666667673,-508.22,0.00016438,2]
[333983446,1722666667683,-508.4,0.00016438,2]
[333983447,1722666667693,-500.0,0.00016438,2]
[333983448,1722666667704,-500.0,0.00016438,2]
[333983449,1722666667714,-2265.81,0.00016438,2]
[333983450,1722666667723,-500.0,0.00016438,2]
[333983451,1722666667732,-500.0,0.00016438,2]
[333983452,1722666667742,-824.9,0.00016438,2]
[333983453,1722666667752,-614.94,0.00016438,2]
[333983454,1722666667761,-1540.49,0.00016438,2]
[333983455,1722666667770,-500.0,0.00016438,2]
[333983456,1722666667780,-3464.14,0.00016438,2]
[333983457,1722666667789,-3761.09,0.00016438,2]
[333983458,1722666667799,-5639.15,0.00016438,2]
[333983459,1722666667808,-500.0,0.00016438,2]
[333983460,1722666667817,-2239.27,0.00016438,2]
[333983461,1722666667827,-617.86,0.00016438,2]
[333983462,1722666667836,-650.38,0.00016438,2]
[333983463,1722666667848,-991.2,0.00016438,2]
[333983464,1722666667859,-500.0,0.00016438,2]
[333983465,1722666667869,-3794.93,0.00016438,2]
[333983466,1722666667878,-500.0,0.00016438,2]
[333983467,1722666667888,-500.0,0.00016438,2]
[333983468,1722666667897,-500.0,0.00016438,2]
[333983469,1722666667906,-6154.67,0.00016438,2]
[333983470,1722666667917,-610.3,0.00016438,2]
[333983471,1722666667926,-1846.35,0.00016438,2]
[333983472,1722666667936,-2062.14,0.00016438,2]
[333983473,1722666667945,-500.0,0.00016438,2]
[333983474,1722666667954,-7006.55,0.00016438,2]
[333983475,1722666667964,-500.0,0.00016438,2]
[333983476,1722666667973,-654.74,0.00016438,2]
[333983477,1722666667983,-500.0,0.00016438,2]
[333983478,1722666667992,-500.0,0.00016438,2]
[333983479,1722666668002,-500.0,0.00016438,2]
[333983480,1722666668011,-2260.06,0.00016438,2]
[333983481,1722666668020,-1671.01,0.00016438,2]
[333983482,1722666668034,-810.7,0.00016438,2]
[333983483,1722666668043,-2426.51,0.00016438,2]
[333983484,1722666668052,-500.0,0.00016438,2]
[333983485,1722666668062,-500.0,0.00016438,2]
[333983486,1722666668071,-500.0,0.00016438,2]
[333983487,1722666668080,-9425.49,0.00016438,2]
[333983488,1722666668090,-500.0,0.00016438,2]
[333983489,1722666668099,-1017.09,0.00016438,2]
[333983490,1722666668109,-706.97,0.00016438,2]
[333983491,1722666668119,-917.582305,0.00016438,2]
[333983492,1722666668128,-917.582305,0.00016438,2]
[333983493,1722666668138,-917.582305,0.00016438,2]
[333983494,1722666668147,-501.58820302,0.00016438,2]
[333983495,1722666668157,-500.0,0.00016438,2]
[333983496,1722666668166,-208.7726801,0.00016438,2]
[333983497,1722666668177,-9197.15,0.00016438,2]
[333983498,1722666668187,-1431.9,0.00016438,2]
[333983499,1722666668196,-18960.81,0.00016438,2]
[333983500,1722666668205,-501.05319249,0.00016438,2]
[333983501,1722666668215,-500.0,0.00016438,2]
[333983502,1722666668225,-500.0,0.00016438,2]
[333983503,1722666668235,-500.0,0.00016438,2]
[333983504,1722666668244,-917.582305,0.00016438,2]
[333983505,1722666668253,-917.582305,0.00016438,2]
[333983506,1722666668264,-917.582305,0.00016438,2]
[333983507,1722666668274,-500.0,0.00016438,2]
[333983508,1722666668283,-803.92,0.00016438,2]
[333983509,1722666668293,-2204.57,0.00016438,2]
[333983510,1722666668303,-500.0,0.00016438,2]
[333983511,1722666668312,-666.06,0.00016438,2]
[333983512,1722666668322,-500.0,0.00016438,2]
[333983513,1722666668332,-684.75,0.00016438,2]
[333983514,1722666668341,-2126.17,0.00016438,2]
[333983515,1722666668351,-1958.7,0.00016438,2]
[333983516,1722666668361,-628.9818,0.00016438,2]
[333983517,1722666668370,-2113.7,0.00016438,2]
[333983518,1722666668379,-511.96011881,0.00016438,2]
[333983519,1722666668390,-628.9818,0.00016438,2]
[333983520,1722666668400,-500.0,0.00016438,2]
[333983521,1722666668410,-628.9818,0.00016438,2]
[333983522,1722666668421,-500.0,0.00016438,2]
[333983523,1722666668431,-876.59,0.00016438,2]
[333983524,1722666668442,-580.14,0.00016438,2]
[333983525,1722666668452,-501.49136181,0.00016438,2]
[333983526,1722666668462,-500.0,0.00016438,2]
[333983527,1722666668473,-628.9818,0.00016438,2]
[333983528,1722666668483,-628.9818,0.00016438,2]
[333983529,1722666668499,-3958.71,0.00016438,2]
[333983530,1722666668508,-1366.09,0.00016438,2]
[333983531,1722666668518,-628.9818,0.00016438,2]
[333983532,1722666668527,-1636.82,0.00016438,2]
[333983533,1722666668536,-3068.73,0.00016438,2]
[333983534,1722666668545,-500.0,0.00016438,2]
[333983535,1722666668554,-500.0,0.00016438,2]
[333983536,1722666668564,-684.008137,0.00016438,2]
[333983537,1722666668574,-500.0,0.00016438,2]
[333983538,1722666668583,-684.008137,0.00016438,2]
[333983539,1722666668594,-535.80649009,0.00016438,2]
[333983540,1722666668603,-500.0,0.00016438,2]
[333983541,1722666668612,-684.008137,0.00016438,2]
[333983542,1722666668622,-500.0,0.00016438,2]
[333983543,1722666668636,-1915.63,0.00016438,2]
[333983544,1722666668646,-2609.6,0.00016438,2]
[333983545,1722666668655,-500.0,0.00016438,2]
[333983546,1722666668664,-1156.97,0.00016438,2]
[333983547,1722666668677,-500.0,0.00016438,2]
[333983548,1722666668687,-1837.83,0.00016438,2]
[333983549,1722666668699,-684.008137,0.00016438,2]
[333983550,1722666668709,-735.07,0.00016438,2]
[333983551,1722666668718,-500.0,0.00016438,2]
[333983552,1722666668728,-684.008137,0.00016438,2]
[333983553,1722666668737,-500.0,0.00016438,2]
[333983554,1722666668747,-684.008137,0.00016438,2]
[333983555,1722666668757,-500.40980073,0.00016438,2]
[333983556,1722666668767,-583.63,0.00016438,2]
[333983557,1722666668776,-500.0,0.00016438,2]
[333983558,1722666668785,-500.0,0.00016438,2]
[333983559,1722666668794,-664.37,0.00016438,2]
[333983560,1722666668803,-500.0,0.00016438,2]
[333983561,1722666668811,-651.05,0.00016438,2]
[333983562,1722666668820,-500.0,0.00016438,2]
[333983563,1722666668829,-2322.65,0.00016438,2]
[333983564,1722666668839,-500.0,0.00016438,2]
[333983565,1722666668849,-500.0,0.00016438,2]
[333983566,1722666668858,-542.1234512,0.00016438,2]
[333983567,1722666668868,-500.0,0.00016438,2]
[333983568,1722666668877,-500.0,0.00016438,2]
[333983569,1722666668887,-1570.63,0.00016438,2]
[333983570,1722666668897,-1304.49,0.00016438,2]
[333983571,1722666668907,-500.0,0.00016438,2]
[333983572,1722666668919,-1780.87,0.00016438,2]
[333983573,1722666668929,-500.0,0.00016438,2]
[333983574,1722666668939,-3594.13,0.00016438,2]
[333983575,1722666668948,-500.0,0.00016438,2]
[333983576,1722666668958,-1004.22,0.00016438,2]
[333983577,1722666668968,-500.0,0.00016438,2]
[333983578,1722666668978,-500.0,0.00016438,2]
[333983579,1722666668989,-2603.67,0.00016438,2]
[333983580,1722666669000,-1360.09,0.00016438,2]
[333983581,1722666669010,-685.3,0.00016438,2]
[333983582,1722666669019,-552.42,0.00016438,2]
[333983583,1722666669030,-726.19940663,0.00016438,2]
[333983584,1722666669039,-152.15849651,0.00016438,2]
[333983585,1722666669049,-7268.48503162,0.00016441,2]
[333983586,1722666669059,-15466.55053223,0.0001647,2]
[333983587,1722666669068,-200.0,0.00016473,2]
[333983588,1722666669078,-2000.0,0.00016485,2]
[333983589,1722666669088,-200.0,0.00016485,2]
[333983590,1722666669097,-2000.0,0.00016485,2]
[333983591,1722666669107,-200.0,0.00016485,2]
[333983592,1722666669118,-726.19940663,0.00016521,2]
[333983593,1722666669127,-152.15849651,0.00016548,2]
[333983594,1722666669138,-726.19940663,0.00016575,2]
[333983595,1722666669148,-568.202,0.00016577,2]
[333983596,1722666669158,-678.23,0.00016591,2]
[333983597,1722666669168,-152.15849651,0.0001663,2]
[333983598,1722666669181,-203.0,0.0001664,2]
[333983599,1722666669191,-200.0,0.0001664,2]
[333983600,1722666669201,-200.0,0.0001664,2]
[333983601,1722666669213,-201.0,0.0001664,2]
[333983602,1722666669223,-2000.0,0.0001665,2]
[333983603,1722666669234,-200.0,0.0001665,2]
[333983604,1722666669244,-2000.0,0.0001665,2]
[333983605,1722666669255,-200.0,0.0001665,2]
[333983606,1722666669265,-360.88,0.00016652,2]
[333983607,1722666669275,-726.19940663,0.00016658,2]
[333983608,1722666669285,-700.0,0.0001667,2]
[333983609,1722666669296,-700.0,0.0001667,2]
[333983610,1722666669306,-1301.05738309,0.0001667,2]
[333983611,1722666669316,-500.0,0.0001667,2]
[333983612,1722666669326,-500.0,0.0001667,2]
[333983613,1722666669336,-500.0,0.0001667,2]
[333983614,1722666669346,-901.115186,0.0001667,2]
[333983615,1722666669356,-2601.02365076,0.0001667,8]
[333983616,1722666669366,-800.0,0.00016687,2]
[333983617,1722666669376,-1558.7867821,0.00016701,2]
[333983618,1722666669386,-33408.8772549,0.00016701,2]
[333983619,1722666669396,-428.3255798,0.00016701,2]
[333983620,1722666669405,-1941.03469,0.00016701,2]
[333983621,1722666669415,-807.91441,0.00016701,2]
[333983622,1722666669430,-2151.05664874,0.00016711,2]
[333983623,1722666669441,-151.0,0.00016712,2]
[333983624,1722666669451,-151.0,0.00016712,2]
[333983625,1722666669460,-151.0,0.00016712,2]
[333983626,1722666669470,-151.0,0.00016712,2]
[333983627,1722666669480,-151.0,0.00016712,2]
[333983628,1722666669489,-151.0,0.00016712,2]
[333983629,1722666669499,-500.0,0.00016712,2]
[333983630,1722666669509,-500.0,0.00016712,2]
[333983631,1722666669519,-500.0,0.00016712,2]
[333983632,1722666669528,-502.34817165,0.00016712,2]
[333983633,1722666669538,-151.0,0.00016712,2]
[333983634,1722666669547,-151.0,0.00016712,2]
[333983635,1722666669557,-151.0,0.00016712,2]
[333983636,1722666669568,-151.0,0.00016712,2]
[333983637,1722666669578,-160.336,0.00016712,2]
[333983638,1722666669588,-151.0,0.00016712,2]
[333983639,1722666669598,-151.0,0.00016712,2]
[333983640,1722666669608,-500.0,0.00016712,2]
[333983641,1722666669618,-500.0,0.00016712,2]
[333983642,1722666669630,-500.0,0.00016712,2]
[333983643,1722666669642,-500.0,0.00016712,2]
[333983644,1722666669651,-500.0,0.00016712,2]
[333983645,1722666669661,-500.0,0.00016712,2]
[333983646,1722666669676,-989.73,0.00016712,2]
[333983647,1722666669685,-504.44068628,0.00016712,2]
[333983648,1722666669695,-505.15506825,0.00016712,2]
[333983649,1722666669706,-504.13108351,0.00016712,2]
[333983650,1722666669715,-788.91,0.00016712,2]
[333983651,1722666669725,-500.0,0.00016712,2]
[333983652,1722666669734,-505.79448828,0.00016712,2]
[333983653,1722666669744,-500.0,0.00016712,2]
[333983654,1722666669754,-500.0,0.00016712,2]
[333983655,1722666669914,-500.0,0.00016712,2]
[333983656,1722666669936,-504.18280155,0.00016712,2]
[333983657,1722666669946,-500.0,0.00016712,2]
[333983658,1722666669956,-500.0,0.00016712,2]
[333983659,1722666669966,-237.05,0.00016712,2]
[333983660,1722666669976,-206.48728018,0.00016712,2]
[333983661,1722666669986,-237.05,0.00016712,2]
[333983662,1722666669995,-237.05,0.00016712,2]
[333983663,1722666670004,-237.05,0.00016712,2]
[333983664,1722666670014,-500.0,0.00016712,2]
[333983665,1722666670024,-788.504572,0.00016712,2]
[333983666,1722666670033,-788.504572,0.00016712,2]
[333983667,1722666670043,-500.0,0.00016712,2]
[333983668,1722666670052,-788.504572,0.00016712,2]
[333983669,1722666670062,-788.504572,0.00016712,2]
[333983670,1722666670072,-500.0,0.00016712,2]
[333983671,1722666670082,-500.0,0.00016712,2]
[333983672,1722666670091,-518.78328143,0.00016712,2]
[333983673,1722666670101,-151.0,0.00016712,2]
[333983674,1722666670111,-500.0,0.00016712,2]
[333983675,1722666670121,-151.0,0.00016712,2]
[333983676,1722666670130,-500.0,0.00016712,2]
[333983677,1722666670140,-268.333382,0.00016712,2]
[333983678,1722666670149,-157.77796831,0.00016712,2]
[333983679,1722666670159,-500.0,0.00016712,2]
[333983680,1722666670168,-500.0,0.00016712,2]
[333983681,1722666670181,-500.0,0.00016712,2]
[333983682,1722666670190,-500.0,0.00016712,2]
[333983683,1722666670200,-500.0,0.00016712,2]
[333983684,1722666670209,-567.17,0.00016712,2]
[333983685,1722666670219,-500.0,0.00016712,2]
[333983686,1722666670229,-500.0,0.00016712,2]
[333983687,1722666670239,-500.0,0.00016712,2]
[333983688,1722666670248,-500.0,0.00016712,2]
[333983689,1722666670258,-500.0,0.00016712,2]
[333983690,1722666670269,-500.0,0.00016712,2]
[333983691,1722666670280,-500.0,0.00016712,2]
[333983692,1722666670289,-1103.75,0.00016712,2]
[333983693,1722666670299,-1066.77,0.00016712,2]
[333983694,1722666670309,-500.0,0.00016712,2]
[333983695,1722666670319,-500.0,0.00016712,2]
[333983696,1722666670329,-507.97384869,0.00016712,2]
[333983697,1722666670339,-500.0,0.00016712,2]
[333983698,1722666670348,-504.90447835,0.00016712,2]
[333983699,1722666670358,-500.0,0.00016712,2]
[333983700,1722666670367,-593.51,0.00016712,2]
[333983701,1722666670377,-500.0,0.00016712,2]
[333983702,1722666670386,-766.07,0.00016712,2]
[333983703,1722666670396,-500.0,0.00016712,2]
[333983704,1722666670406,-300.53856707,0.00016712,2]
[333983705,1722666670415,-758.83,0.00016712,2]
[333983706,1722666670427,-500.0,0.00016712,2]
[333983707,1722666670436,-500.0,0.00016712,2]
[333983708,1722666670447,-495.05005835,0.00016712,2]
[333983709,1722666670458,-500.0,0.00016712,2]
[333983710,1722666670468,-500.0,0.00016712,2]
[333983711,1722666670478,-1147.83,0.00016712,2]
[333983712,1722666670488,-500.0,0.00016712,2]
[333983713,1722666670498,-569.94,0.00016712,2]
[333983714,1722666670507,-500.0,0.00016712,2]
[333983715,1722666670517,-500.0,0.00016712,2]
[333983716,1722666670526,-500.0,0.00016712,2]
[333983717,1722666670536,-500.0,0.00016712,2]
[333983718,1722666670546,-500.0,0.00016712,2]
[333983719,1722666670557,-500.0,0.00016712,2]
[333983720,1722666670567,-500.0,0.00016712,2]
[333983721,1722666670577,-500.0,0.00016712,2]
[333983722,1722666670587,-500.0,0.00016712,2]
[333983723,1722666670596,-500.0,0.00016712,2]
[333983724,1722666670606,-500.0,0.00016712,2]
[333983725,1722666670615,-500.0,0.00016712,2]
[333983726,1722666670626,-500.0,0.00016712,2]
[333983727,1722666670641,-500.0,0.00016712,2]
[333983728,1722666670652,-500.0,0.00016712,2]
[333983729,1722666670662,-500.0,0.00016712,2]
[333983730,1722666670674,-500.0,0.00016712,2]
[333983731,1722666670684,-500.0,0.00016712,2]
[333983732,1722666670694,-500.0,0.00016712,2]
[333983733,1722666670704,-507.57474515,0.00016712,2]
[333983734,1722666670714,-500.0,0.00016712,2]
[333983735,1722666670725,-500.0,0.00016712,2]
[333983736,1722666670736,-500.0,0.00016712,2]
[333983737,1722666670746,-500.0,0.00016712,2]
[333983738,1722666670755,-500.0,0.00016712,2]
[333983739,1722666670766,-573.45945445,0.00016712,2]
[333983740,1722666670776,-500.0,0.00016712,2]
[333983741,1722666670786,-500.0,0.00016712,2]
[333983742,1722666670797,-500.0,0.00016712,2]
[333983743,1722666670806,-500.0,0.00016712,2]
[333983744,1722666670817,-800.64,0.00016712,2]